[Event "*** Titled Tuesday Blitz"]
[Site "Chess.com"]
[Date "2020.05.26"]
[Round "3"]
[White "kushagramohan"]
[Black "Lector118"]
[Result "1-0"]
[WhiteElo "2677"]
[BlackElo "2410"]
[TimeControl "180+1"]
[EndTime "10:26:00 PDT"]
[Termination "kushagramohan won by resignation"]

1. e4 {[%clk 0:03:00.9]} 1... c6 {[%clk 0:02:58.8]} 2. d4 {[%clk 0:03:00.7]}
2... g6 {[%clk 0:02:59.1]} 3. Nf3 {[%clk 0:02:59.7]} 3... d5 {[%clk 0:02:59.3]}
4. e5 {[%clk 0:02:57.4]} 4... Bg7 {[%clk 0:02:57.9]} 5. h3 {[%clk 0:02:57]} 5...
Bf5 {[%clk 0:02:57.7]} 6. c4 {[%clk 0:02:56.6]} 6... e6 {[%clk 0:02:55.2]} 7.
Nc3 {[%clk 0:02:56.5]} 7... h5 {[%clk 0:02:55]} 8. Bg5 {[%clk 0:02:53.2]} 8...
Ne7 {[%clk 0:02:47.5]} 9. Qd2 {[%clk 0:02:45.4]} 9... Nd7 {[%clk 0:02:45.5]} 10.
cxd5 {[%clk 0:02:34.5]} 10... cxd5 {[%clk 0:02:41.1]} 11. Nb5 {[%clk 0:02:31.1]}
11... Qb6 {[%clk 0:02:24.2]} 12. Nd6+ {[%clk 0:02:23.7]} 12... Kf8 {[%clk
0:02:24.3]} 13. Be2 {[%clk 0:02:21.7]} 13... Be4 {[%clk 0:02:14.1]} 14. Nxe4
{[%clk 0:02:05.1]} 14... dxe4 {[%clk 0:02:13.7]} 15. Bxe7+ {[%clk 0:02:05.7]}
15... Kxe7 {[%clk 0:02:11.8]} 16. Ng5 {[%clk 0:02:06.6]} 16... Bh6 {[%clk
0:02:03.6]} 17. h4 {[%clk 0:02:06.7]} 17... Rhd8 {[%clk 0:01:44.7]} 18. O-O
{[%clk 0:01:45.3]} 18... Nxe5 {[%clk 0:01:19]} 19. Rad1 {[%clk 0:01:43.6]} 19...
f6 {[%clk 0:01:12.5]} 20. Qc3 {[%clk 0:01:37.5]} 20... fxg5 {[%clk 0:00:52]} 21.
hxg5 {[%clk 0:01:23.4]} 21... Bxg5 {[%clk 0:00:42.5]} 22. dxe5 {[%clk
0:01:23.6]} 22... Rac8 {[%clk 0:00:42.4]} 23. Qg3 {[%clk 0:01:20.4]} 23... Bh6
{[%clk 0:00:24.7]} 24. Qxg6 {[%clk 0:01:19.1]} 1-0

[Event "*** Titled Tuesday Blitz"]
[Site "Chess.com"]
[Date "2020.05.26"]
[Round "3"]
[White "albi1999"]
[Black "Dmitry_M1"]
[Result "1-0"]
[WhiteElo "2609"]
[BlackElo "2402"]
[TimeControl "180+1"]
[EndTime "10:26:01 PDT"]
[Termination "albi1999 won by resignation"]

1. d4 {[%clk 0:03:00.9]} 1... Nf6 {[%clk 0:02:59.4]} 2. c4 {[%clk 0:03:00.9]}
2... c5 {[%clk 0:02:59.6]} 3. d5 {[%clk 0:02:58.6]} 3... e5 {[%clk 0:02:59.6]}
4. Nc3 {[%clk 0:02:56]} 4... d6 {[%clk 0:02:59.6]} 5. e4 {[%clk 0:02:53.8]} 5...
Be7 {[%clk 0:02:59.9]} 6. g3 {[%clk 0:02:49]} 6... O-O {[%clk 0:03:00.2]} 7. Bg2
{[%clk 0:02:49.6]} 7... a6 {[%clk 0:02:55.6]} 8. a4 {[%clk 0:02:49.1]} 8... b6
{[%clk 0:02:55.3]} 9. Nge2 {[%clk 0:02:48.8]} 9... Ne8 {[%clk 0:02:53.7]} 10.
O-O {[%clk 0:02:48.3]} 10... Nd7 {[%clk 0:02:51.7]} 11. h3 {[%clk 0:02:44.5]}
11... g6 {[%clk 0:02:47.6]} 12. Bh6 {[%clk 0:02:40.3]} 12... Ng7 {[%clk
0:02:47]} 13. Qd2 {[%clk 0:02:40.8]} 13... Ra7 {[%clk 0:02:46.1]} 14. f4 {[%clk
0:02:40]} 14... exf4 {[%clk 0:02:45.6]} 15. gxf4 {[%clk 0:02:37.5]} 15... Bf6
{[%clk 0:02:45.9]} 16. Rae1 {[%clk 0:02:35.7]} 16... Bh4 {[%clk 0:02:26.2]} 17.
Rd1 {[%clk 0:02:35.5]} 17... Bf6 {[%clk 0:02:26.3]} 18. e5 {[%clk 0:02:20]}
18... dxe5 {[%clk 0:02:23.4]} 19. Ne4 {[%clk 0:02:20.5]} 19... exf4 {[%clk
0:02:10.9]} 20. Nxf6+ {[%clk 0:02:19.7]} 20... Qxf6 {[%clk 0:01:58.5]} 21. Bxf4
{[%clk 0:02:16.8]} 21... Qd8 {[%clk 0:01:45.4]} 22. Ng3 {[%clk 0:02:11.9]} 22...
b5 {[%clk 0:01:24.3]} 23. axb5 {[%clk 0:02:05.2]} 23... axb5 {[%clk 0:01:24.5]}
24. cxb5 {[%clk 0:02:05.2]} 24... c4 {[%clk 0:01:25]} 25. Qf2 {[%clk 0:01:50.1]}
25... Nb6 {[%clk 0:00:52.2]} 26. Be3 {[%clk 0:01:41.8]} 26... Rb7 {[%clk
0:00:51.8]} 27. Bc5 {[%clk 0:01:35.8]} 27... Re8 {[%clk 0:00:45.9]} 28. d6
{[%clk 0:01:35.4]} 1-0

[Event "*** Titled Tuesday Blitz"]
[Site "Chess.com"]
[Date "2020.05.26"]
[Round "3"]
[White "mamey78"]
[Black "Baby_Shak"]
[Result "0-1"]
[WhiteElo "2406"]
[BlackElo "2624"]
[TimeControl "180+1"]
[EndTime "10:26:07 PDT"]
[Termination "Baby_Shak won by resignation"]

1. e4 {[%clk 0:03:00.9]} 1... c5 {[%clk 0:02:59.7]} 2. Nf3 {[%clk 0:02:59.4]}
2... g6 {[%clk 0:02:59.9]} 3. c3 {[%clk 0:02:58.1]} 3... Bg7 {[%clk 0:02:59.3]}
4. d4 {[%clk 0:02:57.5]} 4... cxd4 {[%clk 0:03:00.2]} 5. cxd4 {[%clk 0:02:57.7]}
5... d5 {[%clk 0:03:00.5]} 6. e5 {[%clk 0:02:57.9]} 6... Bg4 {[%clk 0:03:00.8]}
7. Bb5+ {[%clk 0:02:58]} 7... Nd7 {[%clk 0:03:01]} 8. Nbd2 {[%clk 0:02:56.8]}
8... Nh6 {[%clk 0:03:00.1]} 9. O-O {[%clk 0:02:55.3]} 9... O-O {[%clk
0:02:59.9]} 10. h3 {[%clk 0:02:54.9]} 10... Bxf3 {[%clk 0:02:53.3]} 11. Nxf3
{[%clk 0:02:55.8]} 11... a6 {[%clk 0:02:50.9]} 12. Bxd7 {[%clk 0:02:52.5]} 12...
Qxd7 {[%clk 0:02:51.1]} 13. Bg5 {[%clk 0:02:52.4]} 13... Nf5 {[%clk 0:02:49.8]}
14. Re1 {[%clk 0:02:51.2]} 14... h6 {[%clk 0:02:48.8]} 15. Bf4 {[%clk
0:02:44.3]} 15... e6 {[%clk 0:02:47.7]} 16. Qd2 {[%clk 0:02:42.1]} 16... Rac8
{[%clk 0:02:42.7]} 17. g4 {[%clk 0:02:37.9]} 17... Ne7 {[%clk 0:02:26.9]} 18.
Bxh6 {[%clk 0:02:37.7]} 18... Qa4 {[%clk 0:02:21.4]} 19. Qg5 {[%clk 0:02:24]}
19... Nc6 {[%clk 0:01:44.2]} 20. b3 {[%clk 0:02:07.5]} 20... Qb4 {[%clk
0:01:42.9]} 21. Rad1 {[%clk 0:02:05]} 21... Qe7 {[%clk 0:01:32.2]} 22. Qxe7
{[%clk 0:01:56.9]} 22... Nxe7 {[%clk 0:01:31.1]} 23. Bxg7 {[%clk 0:01:57.8]}
23... Kxg7 {[%clk 0:01:32]} 24. Rc1 {[%clk 0:01:58]} 24... Nc6 {[%clk
0:01:27.3]} 25. Kg2 {[%clk 0:01:54.1]} 25... Nb4 {[%clk 0:01:26.5]} 26. Rxc8
{[%clk 0:01:42.8]} 26... Rxc8 {[%clk 0:01:27.1]} 27. Re2 {[%clk 0:01:20.7]}
27... Rc1 {[%clk 0:01:22.7]} 28. a3 {[%clk 0:01:16.6]} 28... Nc2 {[%clk
0:01:15.1]} 29. a4 {[%clk 0:01:15.1]} 29... Nb4 {[%clk 0:01:13.7]} 30. Rd2
{[%clk 0:01:14.4]} 30... Rc3 {[%clk 0:01:12.8]} 31. Rb2 {[%clk 0:01:10.7]} 31...
Nd3 {[%clk 0:01:12.7]} 32. Rb1 {[%clk 0:01:07.6]} 32... Nf4+ {[%clk 0:01:12.7]}
33. Kg3 {[%clk 0:01:06.9]} 33... Nxh3 {[%clk 0:01:12.9]} 34. Kxh3 {[%clk
0:01:05]} 34... Rxf3+ {[%clk 0:01:13.1]} 35. Kg2 {[%clk 0:01:05.2]} 35... Rd3
{[%clk 0:01:13.6]} 0-1

[Event "*** Titled Tuesday Blitz"]
[Site "Chess.com"]
[Date "2020.05.26"]
[Round "3"]
[White "MikeSailer"]
[Black "Feegus"]
[Result "0-1"]
[WhiteElo "2085"]
[BlackElo "2469"]
[TimeControl "180+1"]
[EndTime "10:26:07 PDT"]
[Termination "Feegus won by resignation"]

1. d4 {[%clk 0:03:00.5]} 1... Nf6 {[%clk 0:02:59.4]} 2. Nf3 {[%clk 0:03:01.2]}
2... g6 {[%clk 0:02:58.6]} 3. Bf4 {[%clk 0:03:01.5]} 3... Bg7 {[%clk 0:02:58.7]}
4. e3 {[%clk 0:03:02.2]} 4... d6 {[%clk 0:02:57.3]} 5. Be2 {[%clk 0:03:02.8]}
5... O-O {[%clk 0:02:55.6]} 6. O-O {[%clk 0:03:02.4]} 6... Nbd7 {[%clk
0:02:54.9]} 7. c4 {[%clk 0:03:01.5]} 7... b6 {[%clk 0:02:55.5]} 8. Nc3 {[%clk
0:03:01.6]} 8... Bb7 {[%clk 0:02:55.7]} 9. a4 {[%clk 0:03:01.6]} 9... a5 {[%clk
0:02:53]} 10. h3 {[%clk 0:03:01.8]} 10... Nb8 {[%clk 0:02:49.5]} 11. Nd2 {[%clk
0:02:41.4]} 11... Na6 {[%clk 0:02:37.6]} 12. Bf3 {[%clk 0:02:40]} 12... c6
{[%clk 0:02:31]} 13. e4 {[%clk 0:02:19.3]} 13... Nb4 {[%clk 0:02:25.4]} 14. e5
{[%clk 0:02:04.3]} 14... Ne8 {[%clk 0:02:21.5]} 15. exd6 {[%clk 0:01:35.5]}
15... exd6 {[%clk 0:02:13.5]} 16. Nde4 {[%clk 0:01:34.3]} 16... h6 {[%clk
0:01:58.7]} 17. Qd2 {[%clk 0:01:32]} 17... Kh7 {[%clk 0:01:52.4]} 18. Rfe1
{[%clk 0:01:26.7]} 18... f5 {[%clk 0:01:51.1]} 19. Ng3 {[%clk 0:01:16.4]} 19...
Qf6 {[%clk 0:01:50.8]} 20. Nge2 {[%clk 0:01:08.7]} 20... Nc7 {[%clk 0:01:41.5]}
21. c5 {[%clk 0:01:05.7]} 21... Ne8 {[%clk 0:01:22.2]} 22. cxb6 {[%clk
0:01:00.6]} 22... Ra6 {[%clk 0:01:21]} 23. d5 {[%clk 0:00:59.8]} 23... c5 {[%clk
0:01:14.1]} 24. Nb5 {[%clk 0:00:46.8]} 24... Rxb6 {[%clk 0:01:13.8]} 25. Ned4
{[%clk 0:00:40.1]} 25... cxd4 {[%clk 0:01:12.1]} 26. Qxb4 {[%clk 0:00:40.3]}
26... axb4 {[%clk 0:01:11.5]} 0-1

[Event "*** Titled Tuesday Blitz"]
[Site "Chess.com"]
[Date "2020.05.26"]
[Round "3"]
[White "kintoho"]
[Black "wannabe2700"]
[Result "0-1"]
[WhiteElo "2426"]
[BlackElo "2724"]
[TimeControl "180+1"]
[EndTime "10:26:18 PDT"]
[Termination "wannabe2700 won by resignation"]

1. e4 {[%clk 0:02:53.2]} 1... e6 {[%clk 0:02:50.8]} 2. d4 {[%clk 0:02:52.4]}
2... d5 {[%clk 0:02:51.1]} 3. e5 {[%clk 0:02:51.7]} 3... c5 {[%clk 0:02:51]} 4.
c3 {[%clk 0:02:51.3]} 4... Nc6 {[%clk 0:02:47.8]} 5. g3 {[%clk 0:02:51.3]} 5...
Qb6 {[%clk 0:02:41.5]} 6. Ne2 {[%clk 0:02:51.3]} 6... cxd4 {[%clk 0:02:35.2]} 7.
cxd4 {[%clk 0:02:50.5]} 7... Nge7 {[%clk 0:02:35.8]} 8. Bh3 {[%clk 0:02:49.6]}
8... Nf5 {[%clk 0:02:34.4]} 9. Bxf5 {[%clk 0:02:48.4]} 9... exf5 {[%clk
0:02:35.3]} 10. Nbc3 {[%clk 0:02:46.5]} 10... Be6 {[%clk 0:02:35]} 11. O-O
{[%clk 0:02:44.8]} 11... Be7 {[%clk 0:02:34.1]} 12. h4 {[%clk 0:02:44.4]} 12...
h6 {[%clk 0:02:31.4]} 13. Kg2 {[%clk 0:02:36.3]} 13... g5 {[%clk 0:02:29.3]} 14.
hxg5 {[%clk 0:02:35.6]} 14... hxg5 {[%clk 0:02:30.2]} 15. f4 {[%clk 0:02:35.1]}
15... O-O-O {[%clk 0:02:13.1]} 16. Be3 {[%clk 0:02:31.3]} 16... Qxb2 {[%clk
0:01:55.7]} 17. Rb1 {[%clk 0:02:25.4]} 17... Qa3 {[%clk 0:01:55.3]} 18. Rb3
{[%clk 0:02:20.1]} 18... Qa6 {[%clk 0:01:53.4]} 19. fxg5 {[%clk 0:02:19.2]}
19... Na5 {[%clk 0:01:49.8]} 20. Rb1 {[%clk 0:02:13.2]} 20... Nc4 {[%clk
0:01:48.2]} 21. Bf4 {[%clk 0:02:07.9]} 21... Rhg8 {[%clk 0:01:39.6]} 22. Qd3
{[%clk 0:02:02.9]} 22... Bxg5 {[%clk 0:01:36.2]} 23. Nb5 {[%clk 0:01:56.7]}
23... Bxf4 {[%clk 0:01:29.7]} 24. Nxf4 {[%clk 0:01:55.4]} 24... Kb8 {[%clk
0:01:23.2]} 25. Nd6 {[%clk 0:01:48.6]} 25... Rd7 {[%clk 0:01:12.2]} 26. Nxe6
{[%clk 0:01:43.9]} 26... fxe6 {[%clk 0:01:09.9]} 27. Nxc4 {[%clk 0:01:23.1]}
27... dxc4 {[%clk 0:01:07.6]} 28. Qd2 {[%clk 0:01:16.6]} 28... Qc6+ {[%clk
0:01:00.9]} 29. Rf3 {[%clk 0:01:16.8]} 29... Rg4 {[%clk 0:00:56.6]} 30. Rd1
{[%clk 0:01:09]} 30... f4 {[%clk 0:00:52.3]} 31. d5 {[%clk 0:01:00.3]} 31...
Rxd5 {[%clk 0:00:52.2]} 32. Qe2 {[%clk 0:00:53.2]} 32... Rxd1 {[%clk 0:00:51]}
33. Qxd1 {[%clk 0:00:52.3]} 33... Rxg3+ {[%clk 0:00:50.5]} 0-1

[Event "*** Titled Tuesday Blitz"]
[Site "Chess.com"]
[Date "2020.05.26"]
[Round "3"]
[White "chegueps"]
[Black "Y0ung_Capablanca"]
[Result "1-0"]
[WhiteElo "2430"]
[BlackElo "2664"]
[TimeControl "180+1"]
[EndTime "10:26:21 PDT"]
[Termination "chegueps won by checkmate"]

1. e4 {[%clk 0:02:55.9]} 1... Nf6 {[%clk 0:02:58.9]} 2. e5 {[%clk 0:02:53.4]}
2... Nd5 {[%clk 0:02:59.1]} 3. d4 {[%clk 0:02:41.3]} 3... d6 {[%clk 0:02:58.3]}
4. c4 {[%clk 0:02:33.5]} 4... Nb6 {[%clk 0:02:57.5]} 5. f4 {[%clk 0:02:34]} 5...
g6 {[%clk 0:02:54.2]} 6. Nc3 {[%clk 0:02:32.4]} 6... Bg7 {[%clk 0:02:54.1]} 7.
Be3 {[%clk 0:02:30.1]} 7... dxe5 {[%clk 0:02:42.3]} 8. fxe5 {[%clk 0:02:29.8]}
8... c5 {[%clk 0:02:42.5]} 9. dxc5 {[%clk 0:02:20.3]} 9... Qxd1+ {[%clk
0:02:42.4]} 10. Rxd1 {[%clk 0:02:19.5]} 10... N6d7 {[%clk 0:02:42.4]} 11. Nd5
{[%clk 0:02:18.1]} 11... Na6 {[%clk 0:02:40.5]} 12. b4 {[%clk 0:02:03.7]} 12...
e6 {[%clk 0:02:31.7]} 13. Nf6+ {[%clk 0:01:36.9]} 13... Bxf6 {[%clk 0:02:28.4]}
14. exf6 {[%clk 0:01:36.7]} 14... Nxb4 {[%clk 0:02:29.1]} 15. Rd2 {[%clk
0:01:26.2]} 15... Nxf6 {[%clk 0:02:24.7]} 16. Bg5 {[%clk 0:01:24.8]} 16... Nd7
{[%clk 0:02:20.5]} 17. Nf3 {[%clk 0:01:19.5]} 17... Nc6 {[%clk 0:02:15.8]} 18.
Be2 {[%clk 0:00:56]} 18... f6 {[%clk 0:02:08.6]} 19. Be3 {[%clk 0:00:55.5]}
19... e5 {[%clk 0:02:08.9]} 20. O-O {[%clk 0:00:52.7]} 20... Ke7 {[%clk
0:02:08.3]} 21. Rd6 {[%clk 0:00:37.2]} 21... Nf8 {[%clk 0:02:02.2]} 22. Nd2
{[%clk 0:00:36.7]} 22... Be6 {[%clk 0:01:48.4]} 23. Ne4 {[%clk 0:00:33.1]} 23...
Nd7 {[%clk 0:01:47.9]} 24. Rxd7+ {[%clk 0:00:10.8]} 24... Bxd7 {[%clk 0:01:43]}
25. Nxf6 {[%clk 0:00:11.7]} 25... Raf8 {[%clk 0:01:20.7]} 26. Bg5 {[%clk
0:00:08.2]} 26... h6 {[%clk 0:01:20.1]} 27. Nd5+ {[%clk 0:00:07.2]} 27... Ke6
{[%clk 0:01:15.8]} 28. Nc7# {[%clk 0:00:08.1]} 1-0

[Event "*** Titled Tuesday Blitz"]
[Site "Chess.com"]
[Date "2020.05.26"]
[Round "3"]
[White "Charlottemillard17"]
[Black "bazar-wokzal"]
[Result "0-1"]
[WhiteElo "1451"]
[BlackElo "2458"]
[TimeControl "180+1"]
[EndTime "10:26:23 PDT"]
[Termination "bazar-wokzal won by checkmate"]

1. e4 {[%clk 0:03:00.9]} 1... Nc6 {[%clk 0:02:49.7]} 2. d4 {[%clk 0:02:59.4]}
2... d5 {[%clk 0:02:47.7]} 3. e5 {[%clk 0:02:58.1]} 3... h5 {[%clk 0:02:47.1]}
4. Nc3 {[%clk 0:02:55.1]} 4... Bg4 {[%clk 0:02:44.5]} 5. f3 {[%clk 0:02:52.9]}
5... Bf5 {[%clk 0:02:43.8]} 6. Be3 {[%clk 0:02:49.3]} 6... e6 {[%clk 0:02:42.1]}
7. Bb5 {[%clk 0:02:48.3]} 7... Bb4 {[%clk 0:02:40.3]} 8. Bxc6+ {[%clk
0:02:33.6]} 8... bxc6 {[%clk 0:02:39.6]} 9. Bd2 {[%clk 0:02:34.2]} 9... c5
{[%clk 0:02:38]} 10. a3 {[%clk 0:02:25.7]} 10... Bxc3 {[%clk 0:02:31.3]} 11.
Bxc3 {[%clk 0:02:21.1]} 11... cxd4 {[%clk 0:02:26.7]} 12. Bxd4 {[%clk
0:02:20.7]} 12... Ne7 {[%clk 0:02:23.6]} 13. Ne2 {[%clk 0:02:18.6]} 13... h4
{[%clk 0:02:19.9]} 14. h3 {[%clk 0:02:01.4]} 14... a5 {[%clk 0:02:19.4]} 15. Nf4
{[%clk 0:01:44]} 15... Qb8 {[%clk 0:02:07.8]} 16. Rb1 {[%clk 0:01:34]} 16... c5
{[%clk 0:02:03.2]} 17. Be3 {[%clk 0:01:14.8]} 17... Qxe5 {[%clk 0:02:01.4]} 18.
Qe2 {[%clk 0:01:10.3]} 18... d4 {[%clk 0:01:55.3]} 19. Bd2 {[%clk 0:00:45.1]}
19... Qxe2+ {[%clk 0:01:53.7]} 20. Kxe2 {[%clk 0:00:43]} 20... c4 {[%clk
0:01:43.6]} 21. Rhc1 {[%clk 0:00:40.2]} 21... g5 {[%clk 0:01:42.7]} 22. Nxe6
{[%clk 0:00:28.9]} 22... fxe6 {[%clk 0:01:39.8]} 23. Bxg5 {[%clk 0:00:29.4]}
23... Bxc2 {[%clk 0:01:38.8]} 24. Rxc2 {[%clk 0:00:28.3]} 24... d3+ {[%clk
0:01:38.9]} 25. Kd2 {[%clk 0:00:26.5]} 25... dxc2 {[%clk 0:01:39]} 26. Kxc2
{[%clk 0:00:26]} 26... Nd5 {[%clk 0:01:38.6]} 27. Re1 {[%clk 0:00:23.8]} 27...
Kd7 {[%clk 0:01:38.5]} 28. Re4 {[%clk 0:00:20.7]} 28... Rag8 {[%clk 0:01:36.9]}
29. Bxh4 {[%clk 0:00:20.4]} 29... Rxg2+ {[%clk 0:01:35.6]} 30. Kb1 {[%clk
0:00:20.2]} 30... c3 {[%clk 0:01:34.8]} 31. bxc3 {[%clk 0:00:19.2]} 31... Nxc3+
{[%clk 0:01:34.3]} 32. Kc1 {[%clk 0:00:19.9]} 32... Nxe4 {[%clk 0:01:34.3]} 33.
Kd1 {[%clk 0:00:20.3]} 33... Nc3+ {[%clk 0:01:32.4]} 34. Kc1 {[%clk 0:00:19.7]}
34... Rb8 {[%clk 0:01:30.3]} 35. f4 {[%clk 0:00:19.2]} 35... Rb1# {[%clk
0:01:29.9]} 0-1

[Event "*** Titled Tuesday Blitz"]
[Site "Chess.com"]
[Date "2020.05.26"]
[Round "3"]
[White "Flawless_Fighter"]
[Black "Bhagya_2312"]
[Result "1-0"]
[WhiteElo "2470"]
[BlackElo "2102"]
[TimeControl "180+1"]
[EndTime "10:26:29 PDT"]
[Termination "Flawless_Fighter won by resignation"]

1. e4 {[%clk 0:03:00.9]} 1... c6 {[%clk 0:02:59.8]} 2. d4 {[%clk 0:03:00.4]}
2... d5 {[%clk 0:02:59.9]} 3. exd5 {[%clk 0:03:01.3]} 3... cxd5 {[%clk
0:02:59.3]} 4. Bd3 {[%clk 0:03:01.9]} 4... Nc6 {[%clk 0:02:59.3]} 5. c3 {[%clk
0:03:02.6]} 5... Nf6 {[%clk 0:02:59.3]} 6. h3 {[%clk 0:03:02.9]} 6... g6 {[%clk
0:02:54.8]} 7. Qc2 {[%clk 0:03:01.8]} 7... Bg7 {[%clk 0:02:40.2]} 8. Nf3 {[%clk
0:03:01.1]} 8... O-O {[%clk 0:02:40]} 9. O-O {[%clk 0:03:01.6]} 9... Qc7 {[%clk
0:02:39.5]} 10. Re1 {[%clk 0:03:00.7]} 10... Re8 {[%clk 0:02:37.3]} 11. Be3
{[%clk 0:02:49.3]} 11... e5 {[%clk 0:02:36.3]} 12. dxe5 {[%clk 0:02:48.6]} 12...
Nxe5 {[%clk 0:02:35.9]} 13. Nxe5 {[%clk 0:02:49.2]} 13... Qxe5 {[%clk
0:02:33.6]} 14. Nd2 {[%clk 0:02:46]} 14... Qc7 {[%clk 0:02:30.8]} 15. Bd4 {[%clk
0:02:42.1]} 15... Be6 {[%clk 0:02:29.5]} 16. Nf3 {[%clk 0:02:38.8]} 16... Rac8
{[%clk 0:02:15.4]} 17. Qd2 {[%clk 0:02:37.6]} 17... Nd7 {[%clk 0:02:05.2]} 18.
Bxg7 {[%clk 0:02:36.7]} 18... Kxg7 {[%clk 0:02:04.6]} 19. Nd4 {[%clk 0:02:35.6]}
19... Nc5 {[%clk 0:02:04.5]} 20. Rad1 {[%clk 0:02:32.6]} 20... Bd7 {[%clk
0:01:59.1]} 21. Bc2 {[%clk 0:02:24.5]} 21... Ne4 {[%clk 0:01:56.5]} 22. Qd3
{[%clk 0:02:11.3]} 22... Nd6 {[%clk 0:01:45.1]} 23. Qg3 {[%clk 0:02:05.3]} 23...
Qb6 {[%clk 0:01:41.3]} 24. Bb3 {[%clk 0:02:00]} 24... Nc4 {[%clk 0:01:34.8]} 25.
Rb1 {[%clk 0:01:32.6]} 25... a5 {[%clk 0:01:19.9]} 26. Bxc4 {[%clk 0:01:22.1]}
26... dxc4 {[%clk 0:01:18.7]} 27. Re5 {[%clk 0:01:22.3]} 27... Rc5 {[%clk
0:01:06.8]} 28. Rxe8 {[%clk 0:01:19.1]} 28... Bxe8 {[%clk 0:01:06.4]} 29. Re1
{[%clk 0:01:19.1]} 29... Bd7 {[%clk 0:01:03.4]} 30. Re2 {[%clk 0:01:13.9]} 30...
Qf6 {[%clk 0:00:57.1]} 31. Qb8 {[%clk 0:01:09.4]} 31... Bc6 {[%clk 0:00:55.8]}
32. Qc7 {[%clk 0:00:56.5]} 32... Qg5 {[%clk 0:00:38]} 33. Ne6+ {[%clk 0:00:55]}
1-0

[Event "*** Titled Tuesday Blitz"]
[Site "Chess.com"]
[Date "2020.05.26"]
[Round "3"]
[White "Infernal_XaM"]
[Black "emperor87"]
[Result "1-0"]
[WhiteElo "2830"]
[BlackElo "2611"]
[TimeControl "180+1"]
[EndTime "10:26:32 PDT"]
[Termination "Infernal_XaM won by resignation"]

1. c4 {[%clk 0:03:00.9]} 1... e5 {[%clk 0:02:57.4]} 2. Nc3 {[%clk 0:03:01]} 2...
Nf6 {[%clk 0:02:57.3]} 3. e3 {[%clk 0:03:00.9]} 3... Bb4 {[%clk 0:02:56.7]} 4.
Nge2 {[%clk 0:03:00.7]} 4... O-O {[%clk 0:02:55.1]} 5. a3 {[%clk 0:03:01]} 5...
Bxc3 {[%clk 0:02:51.7]} 6. Nxc3 {[%clk 0:03:01.5]} 6... c6 {[%clk 0:02:51.8]} 7.
d4 {[%clk 0:02:55.6]} 7... e4 {[%clk 0:02:50.3]} 8. d5 {[%clk 0:02:46.6]} 8...
d6 {[%clk 0:02:47.2]} 9. Be2 {[%clk 0:02:47.2]} 9... cxd5 {[%clk 0:02:44.5]} 10.
Nxd5 {[%clk 0:02:42.9]} 10... Nc6 {[%clk 0:02:39.7]} 11. O-O {[%clk 0:02:40.3]}
11... Be6 {[%clk 0:02:37.7]} 12. Nf4 {[%clk 0:02:40]} 12... Ne5 {[%clk
0:02:33.1]} 13. b3 {[%clk 0:02:40.2]} 13... Qe7 {[%clk 0:02:17.7]} 14. Bb2
{[%clk 0:02:40]} 14... Bf5 {[%clk 0:02:14.8]} 15. Qd4 {[%clk 0:02:29.8]} 15...
g5 {[%clk 0:02:08.6]} 16. Nd5 {[%clk 0:02:29.7]} 16... Nxd5 {[%clk 0:02:08.6]}
17. Qxd5 {[%clk 0:02:30.3]} 17... Rad8 {[%clk 0:02:02.5]} 18. Rad1 {[%clk
0:02:24]} 18... Rfe8 {[%clk 0:02:00.8]} 19. Rd2 {[%clk 0:02:13.6]} 19... Bg6
{[%clk 0:02:00.4]} 20. Rfd1 {[%clk 0:02:07.4]} 20... b6 {[%clk 0:01:56]} 21.
Bxe5 {[%clk 0:01:22.8]} 21... dxe5 {[%clk 0:01:54.8]} 22. Qxd8 {[%clk
0:01:22.9]} 22... Rxd8 {[%clk 0:01:54.9]} 23. Rxd8+ {[%clk 0:01:23.4]} 23... Kg7
{[%clk 0:01:54.3]} 24. b4 {[%clk 0:01:23]} 24... a5 {[%clk 0:01:53.2]} 25. R8d6
{[%clk 0:01:19.1]} 25... axb4 {[%clk 0:01:52.4]} 26. axb4 {[%clk 0:01:19.5]}
26... Qa7 {[%clk 0:01:52.3]} 27. h3 {[%clk 0:01:17.7]} 27... h5 {[%clk
0:01:51.8]} 28. R6d2 {[%clk 0:01:11.2]} 28... Bf5 {[%clk 0:01:51.3]} 29. Bxh5
{[%clk 0:01:09.4]} 29... Be6 {[%clk 0:01:51.2]} 30. Be2 {[%clk 0:01:09.8]} 30...
Qa3 {[%clk 0:01:50.3]} 31. Rb1 {[%clk 0:00:43.3]} 31... Qc3 {[%clk 0:01:48.8]}
32. Rdd1 {[%clk 0:00:43.7]} 32... f5 {[%clk 0:01:46]} 33. c5 {[%clk 0:00:30.1]}
33... bxc5 {[%clk 0:01:43.2]} 34. b5 {[%clk 0:00:30.6]} 34... f4 {[%clk
0:01:42.8]} 35. b6 {[%clk 0:00:30.9]} 35... Bc8 {[%clk 0:01:42.3]} 36. exf4
{[%clk 0:00:25.6]} 36... exf4 {[%clk 0:01:40.9]} 37. Bg4 {[%clk 0:00:26.2]}
37... Ba6 {[%clk 0:01:39.6]} 38. b7 {[%clk 0:00:25.5]} 38... Bxb7 {[%clk
0:01:39.2]} 39. Rxb7+ {[%clk 0:00:26.1]} 39... Kf6 {[%clk 0:01:39.2]} 40. Rb6+
{[%clk 0:00:25.5]} 1-0

[Event "*** Titled Tuesday Blitz"]
[Site "Chess.com"]
[Date "2020.05.26"]
[Round "3"]
[White "LedakovAlexandr"]
[Black "tigra"]
[Result "0-1"]
[WhiteElo "2520"]
[BlackElo "2757"]
[TimeControl "180+1"]
[EndTime "10:26:33 PDT"]
[Termination "tigra won by resignation"]

1. d4 {[%clk 0:03:00.9]} 1... Nf6 {[%clk 0:02:59.8]} 2. Nf3 {[%clk 0:02:48.3]}
2... e6 {[%clk 0:02:57.8]} 3. Bg5 {[%clk 0:02:47.9]} 3... c5 {[%clk 0:02:56.7]}
4. e3 {[%clk 0:02:47]} 4... h6 {[%clk 0:02:56.6]} 5. Bh4 {[%clk 0:02:45.9]} 5...
Nc6 {[%clk 0:02:56.7]} 6. c3 {[%clk 0:02:39.1]} 6... g5 {[%clk 0:02:56.2]} 7.
Bg3 {[%clk 0:02:38.5]} 7... Ne4 {[%clk 0:02:56.8]} 8. Nbd2 {[%clk 0:02:33.7]}
8... Nxg3 {[%clk 0:02:56.8]} 9. hxg3 {[%clk 0:02:34.6]} 9... d5 {[%clk
0:02:57.5]} 10. Bd3 {[%clk 0:02:12.2]} 10... Qb6 {[%clk 0:02:53.6]} 11. Rb1
{[%clk 0:02:10.7]} 11... Bg7 {[%clk 0:02:52.8]} 12. g4 {[%clk 0:01:57.6]} 12...
Bd7 {[%clk 0:02:51.5]} 13. Nh2 {[%clk 0:01:30.2]} 13... cxd4 {[%clk 0:02:45]}
14. exd4 {[%clk 0:01:23.2]} 14... e5 {[%clk 0:02:45.2]} 15. dxe5 {[%clk
0:01:02.1]} 15... Nxe5 {[%clk 0:02:45.1]} 16. Be2 {[%clk 0:00:41.3]} 16... O-O
{[%clk 0:02:34.9]} 17. O-O {[%clk 0:00:37.9]} 17... Rad8 {[%clk 0:02:26]} 18.
Nb3 {[%clk 0:00:25.4]} 18... Ba4 {[%clk 0:02:22.8]} 19. Re1 {[%clk 0:00:12.6]}
19... Rfe8 {[%clk 0:01:39.7]} 20. Nf1 {[%clk 0:00:11.5]} 20... Re6 {[%clk
0:01:35.2]} 21. Ng3 {[%clk 0:00:08.7]} 21... d4 {[%clk 0:01:32.2]} 22. cxd4
{[%clk 0:00:07.1]} 22... Rxd4 {[%clk 0:01:32.2]} 23. Qc2 {[%clk 0:00:03.6]}
23... Rf4 {[%clk 0:01:27.9]} 24. Bf1 {[%clk 0:00:02.3]} 24... Nxg4 {[%clk
0:01:20]} 25. Qc8+ {[%clk 0:00:02]} 25... Bf8 {[%clk 0:01:10.3]} 26. Qc5 {[%clk
0:00:02.5]} 26... Bxc5 {[%clk 0:01:09.7]} 0-1